Cogmind - Beta 14 @@@ ROGUE MODE // 2024.09.15 @ 12:47:55 Player: Dull Result: Destroyed by G-34 Mercenary with Small Laser Performance ------------- Evolutions (0) 0 Regions Visited (1) 200 Robots Destroyed (18) 90 Value Destroyed (541) 541 Prototype IDs (5) 100 Alien Tech Used (0) 0 Bonus (0) 0 TOTAL SCORE: 931 Bonus ------- None Cogmind --------- Core Integrity 0/250 Matter 300/300 Energy 100/100 System Corruption 0% Temperature Cool (6) Movement Core (350) Ox6 Location -10/Materials Parts ------- > --- POWER (1) -------- (None) > --- PROPULSION (2) --- (None) > --- UTILITY (2) ------ Large Storage Unit > --- WEAPON (2) ------- (None) > --- INVENTORY (15) --- Ion Engine Light Treads Light Treads Aluminum Leg Aluminum Leg Wheel Wheel High-capacity Battery (250) Tractor Beam Beam Cannon Light Assault Rifle Light Cannon Peak State ------------ > --- POWER ------------ Light Nuclear Core > --- PROPULSION ------- Light Treads Light Treads > --- UTILITY ---------- Heat Sink Large Storage Unit > --- WEAPON ----------- Beam Cannon Light Assault Rifle > --- INVENTORY -------- Ion Engine Light Treads Light Treads Aluminum Leg Aluminum Leg Wheel Wheel High-capacity Battery Tractor Beam Beam Cannon Light Assault Rifle Light Cannon [Rating: 10] Favorites ----------- Power Light Ion Engine Engine Light Ion Engine Power Core Light Nuclear Core Propulsion Light Treads Treads Light Treads Leg Aluminum Leg Utility Large Storage Unit Device Improved Terrain Scanner Storage Large Storage Unit Weapon Light Assault Rifle Energy Gun Small Laser Energy Cannon Beam Cannon Ballistic Gun Light Assault Rifle Build | -11 -10 ------- Run | Yrd Mat Slots Evolved . | . . Power . | . . Propulsion . | . . Utility . | . . Weapon . | . . Parts Attached 10 | 3 7 Power 2 | . 2 Engine 1 | . 1 Core 1 | . 1 Reactor . | . . Propulsion 2 | 2 . Treads 2 | 2 . Leg . | . . Wheel . | . . Hover . | . . Flight . | . . Utility 4 | 1 3 Device 2 | 1 1 Storage 2 | . 2 Processor . | . . Hackware . | . . Protection . | . . Artifact . | . . Weapon 2 | . 2 Energy Gun . | . . Energy Cannon 2 | . 2 Ballistic Gun . | . . Ballistic Cannon . | . . Launcher . | . . Special Weapon . | . . Impact Weapon . | . . Slashing Weapon . | . . Piercing Weapon . | . . Special Melee Weapon . | . . Unidentified Prototypes . | . . Parts Lost 8 | . 8 Power 2 | . 2 Propulsion 2 | . 2 Utility 1 | . 1 Weapon 3 | . 3 Highest Loss Streak 6 | . 6 To Critical Strikes . | . . Average Slot Usage (%) 95 | . 95 Engine 10 | . 10 Core 2 | . 2 Treads 26 | . 26 Device 13 | . 13 Storage 14 | . 14 Energy Gun 1 | . 1 Energy Cannon 9 | . 9 Ballistic Gun 13 | . 13 Peak Build Rating 10 | 9 10 Average Rating 8 | 6 8 On Entrance 7 | 6 9 Naked Turns . | . . Heaviest Build 30 | 11 30 Greatest Support 40 | 40 40 Greatest Overweight (x) 9 | . 9 Average Overweight (x) . | . . Largest Inventory Capacity 15 | 8 15 Average Capacity 14 | 8 14 Most Carried 12 | 6 12 Average Carried 8 | 6 8 Final Capacity 15 | 8 15 Final Carried 12 | 6 12 Class Distribution -------------------- 100% | Mutant Dominant Class ---------------- Mutant | -10/Materials Resources | -11 -10 ----------- Run | Yrd Mat Matter Collected 351 | 236 115 Remotely . | . . Salvage Created 720 | 103 617 Parts 39 | 5 34 Haulers Intercepted 1 | . 1 Recyclers Shooed . | . . Parts Field Recycled . | . . Retrieved Matter . | . . Parts Self-Destructed . | . . Prevented . | . . Kills | -11 -10 ------- Run | Yrd Mat Combat Hostiles Destroyed 13 | . 13 Guns 6 | . 6 Cannons 7 | . 7 Classes Destroyed 5 | 2 3 Tunneler 1 | 1 . Hauler 1 | . 1 Recycler 1 | 1 . Watcher 2 | . 2 Grunt 13 | . 13 Best Kill Streak 3 | 2 3 Combat Bots Only 3 | . 3 Max Kills in Single Turn 1 | 1 1 Gunslinging . | . . Exploded . | . . Melee . | . . Uniques/NPCs Destroyed . | . . Combat | -11 -10 -------- Run | Yrd Mat Hostile Shots Fired 113 | . 113 Missed 32 | . 32 Damage Taken 1062 | . 1062 Core 253 | . 253 Absorbed by Shields . | . . Core Remaining (%) 100 | 100 . Volleys Fired 71 | 6 65 Largest 2 | 2 2 Hottest 80 | 60 80 Shots Fired 119 | 12 107 Gun 80 | 12 68 Cannon 39 | . 39 Launcher . | . . Special . | . . Kinetic 71 | 6 65 Thermal 48 | 6 42 Explosive . | . . Electromagnetic . | . . Robot Hit Streak 12 | 4 12 Robot Miss Streak 3 | 3 3 Penetration Max . | . . Secondary Targets . | . . Shots Hit Robots 79 | 8 71 Core Hits 39 | 4 35 Critical Kills . | . . Critical Parts Destroyed . | . . Critical Strikes . | . . Melee Attacks . | . . Impact . | . . Slashing . | . . Piercing . | . . Sneak Attacks . | . . Combat Hostiles . | . . Follow-up Attacks . | . . Damage Inflicted 961 | 74 887 Guns 454 | 74 380 Cannons 487 | . 487 Explosions . | . . Melee . | . . Ramming 20 | . 20 Kinetic 397 | 29 368 Thermal 544 | 45 499 Explosive . | . . Electromagnetic . | . . Impact . | . . Slashing . | . . Piercing . | . . Highest Corruption . | . . Average Corruption . | . . Corruption Purged . | . . Corruption Blocked . | . . Overload Shots . | . . Overflow Damage . | . . Projectiles . | . . Explosions . | . . Melee . | . . Knockbacks . | . . Impact . | . . Kinetic . | . . Secondary . | . . Self-Inflicted Damage . | . . Shots . | . . Rammed 3 | . 3 Targets Rammed 3 | . 3 Kicked . | . . Crushed . | . . Highest Temperature 197 | 40 197 Average Temperature 48 | 20 51 Received Heat Transfer 531 | . 531 Siege Activations . | . . Robots Corrupted . | . . Combat Hostiles . | . . Parts Fried . | . . Impact Corruptions . | . . Robots Melted . | . . Combat Hostiles . | . . Parts Melted . | . . Heat Transferred 1124 | 100 1024 Parts Sabotaged . | . . Parts Stolen . | . . Parts Stripped . | . . Power Chain Reactions . | . . Alert | -11 -10 ------- Run | Yrd Mat Peak Influence 199 | 10 199 Initial 6 | . 6 Average 68 | 5 71 Maximum Alert Level . | . . Low Security (%) 100 | 100 100 Level 1 . | . . Level 2 . | . . Level 3 . | . . Level 4 . | . . Level 5 . | . . High Security . | . . Max Security . | . . Squads Dispatched 5 | . 5 Investigation 3 | . 3 Extermination . | . . Reinforcement 2 | . 2 Assault . | . . Garrison . | . . Intercept . | . . Searches Triggered . | . . Construction Impeded . | . . Haulers Reinforced . | . . Active Scanning Responses . | . . Cargo Convoy Interrupts . | . . Stealth | -11 -10 --------- Run | Yrd Mat Distress Signals 3 | . 3 Communications Jammed . | . . Distress Signals . | . . Times Spotted 25 | . 25 Peak Tracking Total 4 | . 4 Tactical Retreats . | . . Traps | -11 -10 ------- Run | Yrd Mat Traps Triggered 2 | . 2 Indirectly . | . . Trap Hack Attempts . | . . Triggered . | . . Disarmed . | . . Reprogrammed . | . . Reused . | . . Traps Extracted . | . . Installed . | . . Triggered . | . . Machines | -11 -10 ---------- Run | Yrd Mat Machines Disabled . | . . Max in Single Turn . | . . Machines Repaired . | . . Machines Dismantled . | . . Machines Sabotaged . | . . Overloaded Fab Kills . | . . Hacking | -11 -10 --------- Run | Yrd Mat Machines Accessed 5 | . 5 Terminals 5 | . 5 Fabricators . | . . Repair Stations . | . . Recycling Units . | . . Scanalyzers . | . . Garrison Access . | . . Total Hacks 17 | . 17 Successful 8 | . 8 Failed 9 | . 9 Catastrophic 1 | . 1 Database Lockouts . | . . Manual 12 | . 12 Terminals 17 | . 17 Fabricators . | . . Repair Stations . | . . Recycling Units . | . . Scanalyzers . | . . Garrison Access . | . . Terminal Hacks 8 | . 8 Part Schematic 1 | . 1 Robot Analysis 4 | . 4 Prototype ID Bank 3 | . 3 Fabricator Hacks . | . . Repair Station Hacks . | . . Recycling Unit Hacks . | . . Scanalyzer . | . . Garrison Access Hacks . | . . Unauthorized Hacks . | . . Terminals . | . . Fabricators . | . . Repair Stations . | . . Recycling Units . | . . Scanalyzers . | . . Garrison Access . | . . Data Cores Recovered . | . . Used . | . . Hacking Detections 5 | . 5 Full Trace Events 2 | . 2 Feedback Events . | . . Feedback Blocked . | . . Robot Schematics Acquired . | . . Robots Built . | . . Authchips . | . . Time . | . . Total Robot Build Rating . | . . Part Schematics Acquired 1 | . 1 Parts Built . | . . Authchips . | . . Time . | . . Total Part Build Rating . | . . Parts Repaired . | . . Time . | . . Parts Recycled . | . . Recycled Matter . | . . Retrieved Matter . | . . Retrieved Components . | . . Parts Scanalyzed . | . . Part Schematics Acquired . | . . Parts Damaged . | . . Bothacking | -11 -10 ------------ Run | Yrd Mat Used RIF Installer . | . . Robots Hacked . | . . Non-combat . | . . Combat . | . . Robot Hacks Applied . | . . Relay Couplers Released . | . . Fabnet Peak Effective % . | . . Robots Rewired . | . . Allies Hacked . | . . Hacks Repelled . | . . Allies | -11 -10 -------- Run | Yrd Mat Total Allies . | . . Largest Group . | . . Highest-Rated Group . | . . Highest-Rated Ally . | . . Total Orders . | . . Ally Attacks . | . . Total Damage . | . . Kills . | . . Allies Corrupted . | . . Allies Melted . | . . Intel | -11 -10 ------- Run | Yrd Mat Robot Analysis Total 4 | . 4 Derelict Logs Recovered . | . . Drone Launches . | . . Drone Recoveries . | . . Exploration | -11 -10 ------------- Run | Yrd Mat Turns Passed 1153 | 54 1099 Spaces Moved 560 | 21 539 Core 10 | . 10 Treads 550 | 21 529 Legs . | . . Wheels . | . . Hover . | . . Flight . | . . Fastest Speed 160 | 160 160 Average Speed 165 | 160 165 Slowest Speed 500 | 160 500 Overloaded Moves . | . . Propulsion Burnouts . | . . Robots Hopped . | . . Cave-ins Triggered . | . . Exploration Rate (%) 51 | 3 99 Regions Visited 1 Branch Regions . Pre-discovered Areas . | . . Known Exits Taken . | . . Unknown Exits Taken 1 | 1 . Scrap Searched . | . . Spaces Dug . | . . Terrain Destroyed . | . . Melee . | . . Projectile . | . . AOE . | . . Terrain Rammed . | . . Walls Destroyed . | . . Machines Disabled . | . . Actions | -11 -10 --------- Run | Yrd Mat Total 680 | 29 651 Wait 30 | . 30 Move 559 | 20 539 Hop . | . . Pick Up 5 | . 5 Fast Attach 2 | 1 1 Attach 1 | . 1 Detach . | . . Swap 7 | 2 5 Drop 2 | . 2 Fire 71 | 6 65 Melee . | . . Ram . | . . Kick . | . . Crush 3 | . 3 Escape Stasis . | . . Rewire . | . . Trap . | . . Miscellaneous . | . . Route ------- -11/Scrapyard -10/Materials (discovered 5 exits: [*Mat x3] / [*Min x2]) History --------- Turn | Location | Event 4 | -11/Scrapyard | Discovered new exit (range 3) 55 | -11/Scrapyard | Entered Materials 291 | -10/Materials | Discovered new exit (range 6) 302 | -10/Materials | Build established: Mutant 331 | -10/Materials | Discovered new exit (range 7) 569 | -10/Materials | Discovered new exit (range 10) 736 | -10/Materials | Discovered new exit (range 16) 947 | -10/Materials | Discovered new exit (range 12) 1106 | -10/Materials | Core integrity fell below 50% 1145 | -10/Materials | Core integrity fell below 20% 1154 | -10/Materials | Destroyed by G-34 Mercenary with Small Laser Last Messages --------------- 00946_ T-07 Excavator is excavating. 00947_ EXIT=FOUND 00965_ U-05 Engineer builds a Wall. 00967_ T-07 Excavator is excavating. 00968_ K-01 Serf collects debris. 00981_ Acquired 2 matter. 00993_ K-01 Serf cleans the Nuclear Reactor. 00996_ W-16 Scout destroyed. 00999_ K-01 Serf cleans the Nuclear Reactor. 01001_ K-01 Serf collects debris. 01002_ A-02 Transporter destroyed. 01003_ K-01 Serf collects debris. 01010_ Acquired 4 matter. 01098_ K-01 Serf cleans the Electrolysis Chamber. 01110_ Lgt. Treads destroyed. 01113_ K-01 Serf cleans the Terminal. 01136_ Lgt. Assault Rifle destroyed. 01138_ Beam Cannon destroyed. 01140_ Lgt. Nuclear Core destroyed. 01140_ Heat Sink destroyed. Map ----- +----------------------------------------------------+ | | | | | | | | | ?????????????????????????????????????????????????? | | ?????????????????????????????????????????????????? | | ????????#?????????????????????????#??#???????????? | | ??????????????????????##?????????????????????????? | | ??????????#??????????????#??????#????????????????? | | ?????????????????????#???????????#???????????????? | | ???????????#####?##########??????????#?#????????#? | | ??????????##"""### #???????#??#???????????? | | ?????????##"!!!"## #???????#############?#? | | ?????????#"" ""# #?#?????# #! #???? | | ???#?????# # #???????# < # ##??? | | ?????????# < # #?????#?# # """ #???? | | ??????#??# # ######### + """ #???? | | ?#??#????# # ## # """ #?#?? | | ??????????# ## / #= ##??? | | ???######### #?# # #########??? | | ???# # #######+#### #???????#??? | | ???# + #??#?#???### | | ??## # o #??#??#??# | | ???#+####### "" g ###??#?#?# | | ???# ############ "T """ ""#?????## " | | ???# ## # "" !!@g """ T"#??###?# " | | ???# ## """ # =! !! """ ""#??????# " | | ???# ## """ + !! ###??##??# | | ???# + """ # !! r! #??????#?# | | ???# ## "" ### ###+###########=% #????##??# | | ???# ## T" #?# # # =%+%[%#????#?#?#! | | ???# ## "" #?# + = # =!#%* ############ | | ??## ## #?# # # =# | | ???# ############## # #! """ # | | ???# # # """ # | | #??# # # """ # ########### | | ???# # ######## # ## | | ???# # !#??????# + """ ## | | ???# ################ #???#??# # """ ## | | ???# #????#?????????# = ##??#??# # """ ## | | #??# ##????????????## #??????# # ## | | ?###+######???#??#??# #??????# # """ ## | | # ########### #??????# # """ ## | | # """"""" # ###########?#??# # """ ## | | # """"""" # ################ # ## | | # """"""" + [%[ ########### | | # """"""" # ########### !|! #?????????# | | # """"""" # # % + *% #?????????# | | # # # """ ##### ######+##########?# | | # # # """ #???# #?#! #?# | +----------------------------------------------------+ Best States ------------- Heat Dissipation 35 Energy Generation 14 Energy Capacity 250 Matter Stores 300 Matter Capacity 300 Sight Range 16 Terrain Scan Range 16 Terrain Scan Density 10 Evasion (%) 40 Recoil Reduction 2 Item Schematics ----------------- Huge Storage Unit | -10/Materials | Hacked Robot Schematics ------------------ None Fabricated ------------ Nothing Alien Tech Used ----------------- None Achievements -------------- None Challenges ------------ None Game ------ Seed AblativeIntegrityRipteeth Manual? 0 Play Time 00:08:31 Cumulative 82.7 hours Start 2024.09.15 @ 12:39:41 End 2024.09.15 @ 12:47:55 Sessions 1 Manual Loads 0 Difficulty Rogue Special Mode None Game No. 116 Rogue 116 Adventurer 0 Explorer 0 Win Type - Total 1 Types 1/0/0/0/0/0/0/0/0 Lore% 18 Gallery% 55 Achievement% 43 Wizard Run 0 Options --------- Layout 0 ASCII 0 Keyboard 0 Movement Mouse Keybinds 1 Fullscreen 1 Font 18/TerminusBold Map View 76x50 Zoom Use 0% Tactical HUD 1 Map Filters NONE Filters NONE Steam 1 RUN: 0dbeb37a-4da1-442b-9ca4-f8e80c3c3116